[Event "SWE-ch 2019"]
[Site "Eskilstuna"]
[Date "2019.07.13"]
[Round "8.1"]
[White "Lokander, Martin"]
[Black "Hillarp Persson, Tiger"]
[Result "1/2-1/2"]
[ECO "D24"]
[WhiteElo "2397"]
[BlackElo "2562"]
[Annotator "ChessBase"]
[PlyCount "236"]
[EventDate "2019.07.06"]
[EventType "tourn"]
[EventCountry "SWE"]
[SourceTitle "playchess.com"]
[Source "ChessBase"]
[SourceQuality "1"]
[TimeControl "40/5400+30:1800+30"]

1. Nf3 {[%emt 0:00:00]} Nf6 {[%emt 0:00:00]} 2. c4 {[%emt 0:00:00]} e6 {[%emt 0:00:31]} 3. Nc3 {[%emt 0:00:54]} d5 {[%emt 0:00:11]} 4. d4 {[%emt 0:00:26]} dxc4 {[%emt 0:00:08]} 5. e4 {[%emt 0:00:26]} b5 {[%emt 0:00:18]} 6. e5 {[%emt 0:00:09]} Nd5 {[%emt 0:00:06]} 7. Nxb5 {[%emt 0:00:13]} Nb6 {[%emt 0:00:09]} 8. Be2 {[%emt 0:00:31]} Be7 {[%emt 0:00:49]} 9. O-O {[%emt 0:00:25]} Nc6 {[%emt 0:00:07]} 10. Qd2 {[%emt 0:00:58]} Bb7 {[%emt 0:09:25]} 11. Qf4 {[%emt 0:00:35]} Qd7 {[%emt 0:01:46]} 12. Rd1 {[%emt 0:14:30]} g5 {[%emt 0:08:46]} 13. Nxg5 {[%emt 0:05:30]} Bxg5 {[%emt 0:00:09]} 14. Qxg5 {[%emt 0:00:12]} Ne7 {[%emt 0:00:12]} 15. d5 {[%emt 0:22:22]} O-O-O {[%emt 0:23:20]} 16. Nc3 {[%emt 0:12:14]} Nexd5 {[%emt 0:28:48]} 17. Qh5 {[%emt 0:04:42]} Rdg8 {[%emt 0:04:28]} 18. Bf3 {[%emt 0:01:45]} f5 {[%emt 0:05:56]} 19. exf6 {[%emt 0:02:44]} Nxf6 {[%emt 0:00:45]} 20. Bxb7+ {[%emt 0:02:11]} Kxb7 {[%emt 0:00:11]} 21. Rxd7 {[%emt 0:02:56]} Nxh5 {[%emt 0:00:11]} 22. Rf7 {[%emt 0:00:52]} Rf8 {[%emt 0:01:21]} 23. Re7 {[%emt 0:02:17]} Re8 {[%emt 0:01:17]} 24. Rf7 {[%emt 0:00:20]} Ref8 {[%emt 0:00:14]} 25. Re7 {[%emt 0:00:44]} Re8 {[%emt 0:00:08]} 26. Rxe8 {[%emt 0:00:41]} Rxe8 {[%emt 0:00:07]} 27. Ne4 {[%emt 0:00:41]} Ng7 {[%emt 0:04:17]} 28. Bf4 {[%emt 0:09:32]} e5 {[%emt 0:00:52]} 29. Be3 {[%emt 0:00:13]} Nf5 {[%emt 0:01:52]} 30. Rd1 {[%emt 0:02:11]} Kc6 {[%emt 0:02:08]} 31. Nc3 {[%emt 0:03:23]} Rg8 {[%emt 0:02:31]} 32. Kf1 {[%emt 0:01:21]} h5 {[%emt 0:00:19]} 33. g3 {[%emt 0:02:13]} Nxe3+ {[%emt 0:02:46]} 34. fxe3 {[%emt 0:00:03]} Nc8 {[%emt 0:00:12]} 35. Nd5 {[%emt 0:03:28]} Rg7 {[%emt 0:00:25]} 36. Nb4+ {[%emt 0:01:37]} Kc5 {[%emt 0:01:34]} 37. Nd5 {[%emt 0:00:42]} Nd6 {[%emt 0:01:07]} 38. Nc3 {[%emt 0:00:17]} Kc6 {[%emt 0:00:32]} 39. Rd5 {[%emt 0:02:57]} Re7 {[%emt 0:00:43]} 40. Ra5 {[%emt 0:01:36]} Re8 {[%emt 0:00:40]} 41. Ra6+ {[%emt 0:03:08]} Kd7 {[%emt 0:00:24]} 42. Rxa7 {[%emt 0:03:56]} Rb8 {[%emt 0:02:29]} 43. Nd1 {[%emt 0:00:36]} Ne4 {[%emt 0:02:29]} 44. Ke2 {[%emt 0:01:53]} Kd6 {[%emt 0:00:47]} 45. Ra6+ {[%emt 0:01:41]} c6 {[%emt 0:00:10]} 46. Ra4 {[%emt 0:01:48]} Kd5 {[%emt 0:05:10]} 47. Ra5+ {[%emt 0:01:34]} Ke6 {[%emt 0:08:01]} 48. Ra6 {[%emt 0:02:03]} Rd8 {[%emt 0:03:21]} 49. Rxc6+ {[%emt 0:00:46]} Kf5 {[%emt 0:00:12]} 50. a4 {[%emt 0:05:48]} Rd2+ {[%emt 0:00:58]} 51. Ke1 {[%emt 0:00:03]} Rxh2 {[%emt 0:00:30]} 52. a5 {[%emt 0:02:20]} Rh1+ {[%emt 0:06:43]} 53. Ke2 {[%emt 0:00:07]} Rh2+ {[%emt 0:00:08]} 54. Ke1 {[%emt 0:00:01]} Rh1+ {[%emt 0:00:09]} 55. Ke2 {[%emt 0:00:03]} Nxg3+ {[%emt 0:03:15]} 56. Kf3 {[%emt 0:01:21]} Ne4 {[%emt 0:00:16]} 57. Nc3 {[%emt 0:03:47]} Rf1+ {[%emt 0:02:20]} 58. Ke2 {[%emt 0:01:00]} Rf2+ {[%emt 0:00:57]} 59. Ke1 {[%emt 0:00:08]} Rxb2 {[%emt 0:00:23]} 60. Nxe4 {[%emt 0:00:39]} Kxe4 {[%emt 0:00:08]} 61. Rxc4+ {[%emt 0:00:06]} Kxe3 {[%emt 0:01:08]} 62. Rc3+ {[%emt 0:00:03]} Kd4 {[%emt 0:00:26]} 63. Ra3 {[%emt 0:00:07]} Rb7 {[%emt 0:00:23]} 64. a6 {[%emt 0:00:03]} Ra7 {[%emt 0:00:05]} 65. Ke2 {[%emt 0:00:25]} h4 {[%emt 0:00:17]} 66. Ra4+ {[%emt 0:00:15]} Kd5 {[%emt 0:00:09]} 67. Rxh4 {[%emt 0:00:56]} Rxa6 {[%emt 0:00:07]} 68. Kd3 {[%emt 0:00:06]} e4+ {[%emt 0:00:20]} 69. Ke2 {[%emt 0:00:16]} Ra2+ {[%emt 0:00:34]} 70. Ke3 {[%emt 0:00:09]} Ra3+ {[%emt 0:00:06]} 71. Ke2 {[%emt 0:00:03]} Kd4 {[%emt 0:00:08]} 72. Rh8 {[%emt 0:02:41]} Ra2+ {[%emt 0:00:12]} 73. Ke1 {[%emt 0:00:21]} Kd3 {[%emt 0:00:08]} 74. Re8 {[%emt 0:00:03]} Ke3 {[%emt 0:00:57]} 75. Kf1 {[%emt 0:00:15]} Ra1+ {[%emt 0:00:58]} 76. Kg2 {[%emt 0:00:02]} Rd1 {[%emt 0:01:10]} 77. Re7 {[%emt 0:00:23]} Rd2+ {[%emt 0:01:53]} 78. Kf1 {[%emt 0:00:08]} Rd1+ {[%emt 0:00:11]} 79. Kg2 {[%emt 0:00:04]} Kd3 {[%emt 0:00:26]} 80. Kf2 {[%emt 0:00:11]} Rd2+ {[%emt 0:00:12]} 81. Ke1 {[%emt 0:00:20]} Re2+ {[%emt 0:00:45]} 82. Kf1 {[%emt 0:01:02]} Kd2 {[%emt 0:00:58]} 83. Rd7+ {[%emt 0:00:15]} Ke3 {[%emt 0:00:15]} 84. Re7 {[%emt 0:00:04]} Rc2 {[%emt 0:00:26]} 85. Re8 {[%emt 0:00:17]} Rc4 {[%emt 0:00:44]} 86. Re7 {[%emt 0:00:24]} Rd4 {[%emt 0:01:04]} 87. Ke1 {[%emt 0:00:08]} Ra4 {[%emt 0:00:20]} 88. Kf1 {[%emt 0:00:09]} Ra1+ {[%emt 0:00:17]} 89. Kg2 {[%emt 0:00:04]} Re1 {[%emt 0:00:03]} 90. Ra7 {[%emt 0:00:19]} Re2+ {[%emt 0:00:20]} 91. Kf1 {[%emt 0:00:32]} Rd2 {[%emt 0:00:48]} 92. Re7 {[%emt 0:00:42]} Rc2 {[%emt 0:00:52]} 93. Re8 {[%emt 0:00:18]} Rc6 {[%emt 0:00:46]} 94. Re7 {[%emt 0:00:20]} Rf6+ {[%emt 0:00:26]} 95. Ke1 {[%emt 0:00:31]} Kf3 {[%emt 0:00:26]} 96. Kf1 {[%emt 0:01:41]} Rf4 {[%emt 0:00:47]} 97. Re8 {[%emt 0:00:25]} Ke3+ {[%emt 0:00:23]} 98. Ke1 {[%emt 0:00:03]} Rh4 {[%emt 0:00:08]} 99. Kf1 {[%emt 0:00:17]} Rh3 {[%emt 0:00:45]} 100. Re7 {[%emt 0:00:14]} Rh2 {[%emt 0:00:33]} 101. Re8 {[%emt 0:00:15]} Rh1+ {[%emt 0:00:37]} 102. Kg2 {[%emt 0:00:06]} Rd1 {[%emt 0:00:14]} 103. Re7 {[%emt 0:00:42]} Kd3 {[%emt 0:00:12]} 104. Kf2 {[%emt 0:00:13]} Rd2+ {[%emt 0:00:10]} 105. Ke1 {[%emt 0:00:15]} Re2+ {[%emt 0:00:07]} 106. Kf1 {[%emt 0:00:10]} Rc2 {[%emt 0:00:48]} 107. Rd7+ {[%emt 0:00:20]} Ke3 {[%emt 0:00:11]} 108. Re7 {[%emt 0:00:02]} Rc1+ {[%emt 0:00:58]} 109. Kg2 {[%emt 0:00:03]} Kd3 {[%emt 0:00:30]} 110. Kf2 {[%emt 0:00:04]} Rc2+ {[%emt 0:00:43]} 111. Ke1 {[%emt 0:00:09]} Rh2 {[%emt 0:00:37]} 112. Re8 {[%emt 0:00:15]} Ke3 {[%emt 0:00:34]} 113. Kf1 {[%emt 0:00:09]} Rh4 {[%emt 0:00:13]} 114. Re7 {[%emt 0:00:13]} Rf4+ {[%emt 0:00:48]} 115. Ke1 {[%emt 0:00:14]} Kf3 {[%emt 0:00:05]} 116. Kf1 {[%emt 0:00:24]} Rf8 {[%emt 0:00:33]} 117. Re6 {[%emt 0:00:13]} Ra8 {[%emt 0:00:51]} 118. Rf6+ {[%emt 0:00:10]} Ke3 {[%emt 0:00:21]} 1/2-1/2

[Event "SWE-ch 2019"]
[Site "Eskilstuna"]
[Date "2019.07.13"]
[Round "8.2"]
[White "Hector, Jonny"]
[Black "Wiedenkeller, Michael"]
[Result "1-0"]
[ECO "C50"]
[WhiteElo "2487"]
[BlackElo "2461"]
[Annotator "ChessBase"]
[PlyCount "165"]
[EventDate "2019.07.06"]
[EventType "tourn"]
[EventCountry "SWE"]
[SourceTitle "playchess.com"]
[Source "ChessBase"]
[SourceQuality "1"]
[TimeControl "40/5400+30:1800+30"]

1. e4 {[%emt 0:00:00]} e5 {[%emt 0:00:01]} 2. Nf3 {[%emt 0:00:02]} Nc6 {[%emt 0:00:16]} 3. Bc4 {[%emt 0:00:11]} Bc5 {[%emt 0:00:19]} 4. O-O {[%emt 0:01:23]} Nf6 {[%emt 0:00:19]} 5. d3 {[%emt 0:01:21]} O-O {[%emt 0:00:41]} 6. Bb3 {[%emt 0:00:31]} h6 {[%emt 0:15:53]} 7. Nbd2 {[%emt 0:04:11]} Re8 {[%emt 0:03:27]} 8. Re1 {[%emt 0:01:48]} d6 {[%emt 0:01:31]} 9. c3 {[%emt 0:02:38]} Be6 {[%emt 0:00:55]} 10. Ba4 {[%emt 0:02:21]} Bb6 {[%emt 0:11:32]} 11. Nc4 {[%emt 0:05:34]} Bxc4 {[%emt 0:01:27]} 12. dxc4 {[%emt 0:00:33]} a5 {[%emt 0:00:38]} 13. h3 {[%emt 0:07:03]} Nd7 {[%emt 0:02:03]} 14. a3 {[%emt 0:00:21]} Nc5 {[%emt 0:01:29]} 15. Bc2 {[%emt 0:01:05]} a4 {[%emt 0:04:41]} 16. Be3 {[%emt 0:01:10]} Qb8 {[%emt 0:00:42]} 17. Nh4 {[%emt 0:10:58]} Re6 {[%emt 0:09:15]} 18. Nf5 {[%emt 0:01:25]} Qa7 {[%emt 0:00:53]} 19. h4 {[%emt 0:02:47]} Nd7 {[%emt 0:02:11]} 20. Bxb6 {[%emt 0:04:59]} Nxb6 {[%emt 0:01:39]} 21. Bd3 {[%emt 0:06:18]} Nd7 {[%emt 0:01:20]} 22. h5 {[%emt 0:05:03]} Kh8 {[%emt 0:04:24]} 23. Re3 {[%emt 0:03:13]} Ne7 {[%emt 0:03:57]} 24. Nh4 {[%emt 0:01:37]} Rf6 {[%emt 0:03:04]} 25. Bc2 {[%emt 0:02:16]} Nc5 {[%emt 0:00:52]} 26. Qe2 {[%emt 0:04:04]} Qb6 {[%emt 0:01:29]} 27. Rb1 {[%emt 0:00:13]} Re8 {[%emt 0:01:51]} 28. g3 {[%emt 0:01:48]} Nc6 {[%emt 0:02:31]} 29. Nf5 {[%emt 0:03:36]} Ne7 {[%emt 0:01:57]} 30. Qg4 {[%emt 0:00:39]} Nxf5 {[%emt 0:00:34]} 31. exf5 {[%emt 0:00:09]} Qc6 {[%emt 0:02:12]} 32. Rbe1 {[%emt 0:00:58]} Qb6 {[%emt 0:01:32]} 33. R3e2 {[%emt 0:03:18]} Kh7 {[%emt 0:04:48]} 34. Kg2 {[%emt 0:09:59]} Rb8 {[%emt 0:06:55]} 35. Bb1 {[%emt 0:01:35]} Qc6+ {[%emt 0:00:32]} 36. f3 {[%emt 0:04:01]} b5 {[%emt 0:00:18]} 37. cxb5 {[%emt 0:01:11]} Rxb5 {[%emt 0:00:15]} 38. Rf2 {[%emt 0:00:35]} Qb7 {[%emt 0:01:08]} 39. Ree2 {[%emt 0:00:18]} Kh8 {[%emt 0:03:56]} 40. Kh2 {[%emt 0:03:23]} Kg8 {[%emt 0:03:27]} 41. Qh3 {[%emt 0:07:51]} Qb8 {[%emt 0:05:46]} 42. Qf1 {[%emt 0:01:03]} Kh7 {[%emt 0:02:57]} 43. Qc1 {[%emt 0:02:03]} Nb3 {[%emt 0:03:07]} 44. Qd1 {[%emt 0:01:19]} Nc5 {[%emt 0:00:59]} 45. g4 {[%emt 0:00:38]} c6 {[%emt 0:00:31]} 46. Kg2 {[%emt 0:02:05]} d5 {[%emt 0:01:41]} 47. Qe1 {[%emt 0:03:29]} Nd7 {[%emt 0:02:23]} 48. Qc1 {[%emt 0:02:38]} Kh8 {[%emt 0:01:49]} 49. Kf1 {[%emt 0:01:20]} Rd6 {[%emt 0:01:42]} 50. Qc2 {[%emt 0:01:23]} d4 {[%emt 0:04:00]} 51. cxd4 {[%emt 0:04:49]} Rxd4 {[%emt 0:00:47]} 52. f6 {[%emt 0:02:33]} Nxf6 {[%emt 0:00:52]} 53. Qxc6 {[%emt 0:02:14]} Rbd5 {[%emt 0:04:52]} 54. Bf5 {[%emt 0:01:18]} Rd8 {[%emt 0:01:05]} 55. Re1 {[%emt 0:02:08]} Nd5 {[%emt 0:01:06]} 56. Rfe2 {[%emt 0:01:56]} Qb3 {[%emt 0:01:35]} 57. Kf2 {[%emt 0:01:18]} Nf4 {[%emt 0:01:14]} 58. Rxe5 {[%emt 0:01:06]} Nd3+ {[%emt 0:04:04]} 59. Bxd3 {[%emt 0:00:21]} Qxd3 {[%emt 0:00:33]} 60. Re8+ {[%emt 0:00:30]} Kh7 {[%emt 0:00:37]} 61. Rxd8 {[%emt 0:00:29]} Rxd8 {[%emt 0:00:02]} 62. Qe4+ {[%emt 0:02:17]} Qxe4 {[%emt 0:00:50]} 63. Rxe4 {[%emt 0:00:06]} Rd2+ {[%emt 0:00:07]} 64. Ke3 {[%emt 0:00:10]} Rxb2 {[%emt 0:00:04]} 65. Rxa4 {[%emt 0:00:04]} Rb3+ {[%emt 0:00:22]} 66. Ke4 {[%emt 0:00:19]} g6 {[%emt 0:00:36]} 67. hxg6+ {[%emt 0:00:11]} Kxg6 {[%emt 0:00:10]} 68. Ra5 {[%emt 0:00:17]} f6 {[%emt 0:00:22]} 69. Kf4 {[%emt 0:02:25]} Rc3 {[%emt 0:00:14]} 70. a4 {[%emt 0:00:13]} Rc4+ {[%emt 0:00:44]} 71. Ke3 {[%emt 0:00:13]} Rb4 {[%emt 0:00:41]} 72. Ra8 {[%emt 0:00:20]} f5 {[%emt 0:01:44]} 73. Ra6+ {[%emt 0:00:28]} Kg5 {[%emt 0:00:32]} 74. Ra5 {[%emt 0:00:08]} Kg6 {[%emt 0:00:04]} 75. gxf5+ {[%emt 0:00:18]} Kf6 {[%emt 0:00:17]} 76. Ra8 {[%emt 0:01:18]} Kxf5 {[%emt 0:00:39]} 77. a5 {[%emt 0:00:17]} Kf6 {[%emt 0:01:06]} 78. a6 {[%emt 0:00:20]} Ra4 {[%emt 0:00:23]} 79. a7 {[%emt 0:00:17]} Kg7 {[%emt 0:00:08]} 80. Kf2 {[%emt 0:00:11]} h5 {[%emt 0:01:49]} 81. Kg3 {[%emt 0:00:14]} Kh7 {[%emt 0:00:16]} 82. f4 {[%emt 0:00:30]} Kg7 {[%emt 0:00:29]} 83. f5 {[%emt 0:00:14]} 1-0

[Event "SWE-ch 2019"]
[Site "Eskilstuna"]
[Date "2019.07.13"]
[Round "8.3"]
[White "Blomqvist, Erik"]
[Black "Smith, Axel"]
[Result "1-0"]
[ECO "C02"]
[WhiteElo "2492"]
[BlackElo "2469"]
[Annotator "ChessBase"]
[PlyCount "105"]
[EventDate "2019.07.06"]
[EventType "tourn"]
[EventCountry "SWE"]
[SourceTitle "playchess.com"]
[Source "ChessBase"]
[SourceQuality "1"]
[TimeControl "40/5400+30:1800+30"]

1. e4 e6 2. d4 d5 3. e5 c5 4. c3 Nc6 5. Nf3 Bd7 6. Be2 Rc8 7. O-O cxd4 8. cxd4 Nge7 9. Nc3 Ng6 10. g3 Be7 11. h4 h6 12. Bd3 Nf8 13. Bd2 a6 14. Rc1 b5 15. a4 Nb4 16. Bb1 bxa4 17. Nxa4 Rxc1 18. Bxc1 Bb5 19. Re1 Nd7 20. Nc3 Bc6 21. Ne2 Qa5 22. Bd2 Qb5 23. b3 a5 24. Qc1 Qb7 25. Nf4 h5 26. Ng5 Bxg5 27. hxg5 g6 28. Kg2 Rg8 29. Qc3 Ke7 30. Rc1 Bb5 31. Qf3 Qb6 32. Bc3 Bc6 33. Bb2 Bb5 34. g4 hxg4 35. Qxg4 Qa6 36. Qh3 Nf8 37. Ba3 Kd8 38. Qc3 Qb7 39. Rh1 Qe7 40. Qg3 Rg7 41. Bd3 Be8 42. Rh8 Rh7 43. Rg8 Kc7 44. Be2 Bc6 45. Nh3 Nd7 46. f4 Kb7 47. Nf2 Nb6 48. Ng4 Qc7 49. Qc3 f5 50. gxf6 {[%emt 0:55:09]} Qf7 {[%emt 1:00:31]} 51. Nh6 {[%emt 0:00:30]} Qc7 {[%emt 0:00:30]} 52. Rxg6 {[%emt 0:00:30]} Be8 {[%emt 0:00:30]} 53. Qxc7+ {[%emt 0:00:30]} 1-0

[Event "SWE-ch 2019"]
[Site "Eskilstuna"]
[Date "2019.07.13"]
[Round "8.4"]
[White "Johansson, Linus"]
[Black "Sagit, Rauan"]
[Result "0-1"]
[ECO "D02"]
[WhiteElo "2480"]
[BlackElo "2429"]
[Annotator "ChessBase"]
[PlyCount "70"]
[EventDate "2019.07.06"]
[EventType "tourn"]
[EventCountry "SWE"]
[SourceTitle "playchess.com"]
[Source "ChessBase"]
[SourceQuality "1"]
[TimeControl "40/5400+30:1800+30"]

1. Nf3 {[%emt 0:00:00]} d5 {[%emt 0:00:01]} 2. g3 {[%emt 0:00:00]} Nf6 {[%emt 0:00:34]} 3. Bg2 {[%emt 0:00:00]} e6 {[%emt 0:00:11]} 4. c4 {[%emt 0:00:08]} Be7 {[%emt 0:00:11]} 5. O-O {[%emt 0:00:08]} O-O {[%emt 0:00:14]} 6. b3 {[%emt 0:00:06]} b6 {[%emt 0:00:19]} 7. Bb2 {[%emt 0:00:59]} c5 {[%emt 0:00:19]} 8. d4 {[%emt 0:04:26]} Bb7 {[%emt 0:02:54]} 9. Nbd2 {[%emt 0:06:28]} Nc6 {[%emt 0:02:37]} 10. cxd5 {[%emt 0:07:38]} Nxd5 {[%emt 0:00:59]} 11. dxc5 {[%emt 0:06:29]} Bxc5 {[%emt 0:00:20]} 12. Ne4 {[%emt 0:00:05]} Be7 {[%emt 0:00:28]} 13. Nd4 {[%emt 0:00:31]} Ndb4 {[%emt 0:04:11]} 14. Nxc6 {[%emt 0:12:12]} Nxc6 {[%emt 0:01:33]} 15. Qc1 {[%emt 0:06:50]} Rc8 {[%emt 0:08:46]} 16. Rd1 {[%emt 0:06:51]} Qc7 {[%emt 0:01:23]} 17. Qc3 {[%emt 0:10:08]} e5 {[%emt 0:00:44]} 18. Rac1 {[%emt 0:02:04]} Rfd8 {[%emt 0:00:50]} 19. e3 {[%emt 0:09:18]} h6 {[%emt 0:04:48]} 20. a3 {[%emt 0:03:00]} Bf8 {[%emt 0:05:17]} 21. b4 {[%emt 0:01:13]} Qb8 {[%emt 0:05:41]} 22. Qb3 {[%emt 0:01:05]} Qa8 {[%emt 0:01:55]} 23. Bh3 {[%emt 0:04:13]} Rxd1+ {[%emt 0:04:25]} 24. Rxd1 {[%emt 0:00:02]} Rd8 {[%emt 0:00:50]} 25. Rxd8 {[%emt 0:01:43]} Qxd8 {[%emt 0:06:06]} 26. Qc2 {[%emt 0:00:12]} Qd5 {[%emt 0:04:48]} 27. Bg2 {[%emt 0:00:09]} Kh8 {[%emt 0:01:35]} 28. f4 {[%emt 0:03:26]} Qe6 {[%emt 0:10:14]} 29. b5 {[%emt 0:01:39]} Na5 {[%emt 0:02:18]} 30. Bxe5 {[%emt 0:01:37]} Nc4 {[%emt 0:08:15]} 31. Ng5 {[%emt 0:08:40]} hxg5 {[%emt 0:01:48]} 32. Bxb7 {[%emt 0:00:01]} Bc5 {[%emt 0:02:37]} 33. Qd1 {[%emt 0:03:41]} Nxe5 {[%emt 0:05:11]} 34. Bd5 {[%emt 0:00:06]} Qg4 {[%emt 0:01:47]} 35. Qf1 {[%emt 0:01:35]} gxf4 {[%emt 0:00:45]} 0-1

[Event "SWE-ch 2019"]
[Site "Eskilstuna"]
[Date "2019.07.13"]
[Round "8.5"]
[White "Cramling, Pia"]
[Black "Kucuksari, Kaan"]
[Result "1-0"]
[ECO "D61"]
[WhiteElo "2479"]
[BlackElo "2310"]
[Annotator "ChessBase"]
[PlyCount "75"]
[EventDate "2019.07.06"]
[EventType "tourn"]
[EventCountry "SWE"]
[SourceTitle "playchess.com"]
[Source "ChessBase"]
[SourceQuality "1"]
[TimeControl "40/5400+30:1800+30"]

1. c4 {[%emt 0:00:01]} c6 {[%emt 0:00:00]} 2. d4 {[%emt 0:00:49]} d5 {[%emt 0:00:00]} 3. Nf3 {[%emt 0:00:13]} Nf6 {[%emt 0:00:00]} 4. Nc3 {[%emt 0:00:11]} e6 {[%emt 0:00:49]} 5. Bg5 {[%emt 0:00:57]} Be7 {[%emt 0:00:56]} 6. e3 {[%emt 0:00:25]} Nbd7 {[%emt 0:00:06]} 7. Qc2 {[%emt 0:01:39]} h6 {[%emt 0:00:21]} 8. Bh4 {[%emt 0:00:28]} O-O {[%emt 0:00:46]} 9. Rd1 {[%emt 0:04:54]} a6 {[%emt 0:04:58]} 10. a3 {[%emt 0:02:59]} b5 {[%emt 0:04:27]} 11. c5 {[%emt 0:01:01]} a5 {[%emt 0:00:02]} 12. b4 {[%emt 0:03:50]} Ng4 {[%emt 0:17:17]} 13. Bxe7 {[%emt 0:17:35]} Qxe7 {[%emt 0:00:02]} 14. e4 {[%emt 0:02:27]} axb4 {[%emt 0:12:25]} 15. axb4 {[%emt 0:00:10]} dxe4 {[%emt 0:01:42]} 16. Qxe4 {[%emt 0:01:31]} Ndf6 {[%emt 0:01:44]} 17. Qxc6 {[%emt 0:02:06]} Bb7 {[%emt 0:08:17]} 18. Qxb5 {[%emt 0:11:06]} Ra3 {[%emt 0:04:19]} 19. c6 {[%emt 0:01:53]} Ba6 {[%emt 0:14:32]} 20. Qc5 {[%emt 0:02:25]} Qxc5 {[%emt 0:00:02]} 21. bxc5 {[%emt 0:12:30]} Bxf1 {[%emt 0:00:02]} 22. Kxf1 {[%emt 0:05:31]} Rxc3 {[%emt 0:00:02]} 23. h3 {[%emt 0:00:32]} Rc8 {[%emt 0:02:03]} 24. hxg4 {[%emt 0:00:17]} Nxg4 {[%emt 0:00:02]} 25. Ke2 {[%emt 0:01:14]} Rxc6 {[%emt 0:01:13]} 26. Rc1 {[%emt 0:00:21]} Ra3 {[%emt 0:01:51]} 27. Ra1 {[%emt 0:04:47]} Rca6 {[%emt 0:00:29]} 28. Rxa3 {[%emt 0:00:05]} Rxa3 {[%emt 0:00:08]} 29. Rc1 {[%emt 0:03:57]} Ra8 {[%emt 0:14:26]} 30. Rc2 {[%emt 0:01:29]} Kf8 {[%emt 0:01:27]} 31. Rb2 {[%emt 0:03:05]} Ra7 {[%emt 0:02:26]} 32. Kd3 {[%emt 0:00:50]} Ke7 {[%emt 0:00:55]} 33. Kc4 {[%emt 0:01:05]} Nf6 {[%emt 0:04:43]} 34. Ne5 {[%emt 0:04:04]} Rc7 {[%emt 0:00:01]} 35. Rb6 {[%emt 0:02:02]} Nd5 {[%emt 0:01:29]} 36. Rd6 {[%emt 0:01:44]} f6 {[%emt 0:00:55]} 37. Nc6+ {[%emt 0:00:57]} Kf8 {[%emt 0:00:24]} 38. Nd8 {[%emt 0:00:50]} 1-0

[Event "SWE-ch 2019"]
[Site "Eskilstuna"]
[Date "2019.07.14"]
[Round "9.1"]
[White "Kucuksari, Kaan"]
[Black "Lokander, Martin"]
[Result "1-0"]
[ECO "E06"]
[WhiteElo "2310"]
[BlackElo "2397"]
[Annotator "ChessBase"]
[PlyCount "51"]
[EventDate "2019.07.06"]
[EventType "tourn"]
[EventCountry "SWE"]
[SourceTitle "playchess.com"]
[Source "ChessBase"]
[SourceQuality "1"]
[TimeControl "40/5400+30:1800+30"]

1. d4 {[%emt 0:00:00]} d5 {[%emt 0:00:00]} 2. Nf3 {[%emt 0:00:00]} Nf6 {[%emt 0:00:00]} 3. c4 {[%emt 0:00:00]} e6 {[%emt 0:00:01]} 4. Nc3 {[%emt 0:01:00]} Be7 {[%emt 0:00:48]} 5. g3 {[%emt 0:02:04]} O-O {[%emt 0:00:29]} 6. Bg2 {[%emt 0:00:02]} c6 {[%emt 0:01:35]} 7. O-O {[%emt 0:00:48]} b6 {[%emt 0:02:06]} 8. Ne5 {[%emt 0:00:37]} Nfd7 {[%emt 0:02:20]} 9. cxd5 {[%emt 0:02:22]} Nxe5 {[%emt 0:01:40]} 10. dxe5 {[%emt 0:00:39]} exd5 {[%emt 0:02:01]} 11. Nxd5 {[%emt 0:00:02]} Bb7 {[%emt 0:00:42]} 12. Nxe7+ {[%emt 0:06:53]} Qxe7 {[%emt 0:00:05]} 13. Qd6 {[%emt 0:00:04]} Re8 {[%emt 0:01:56]} 14. Rd1 {[%emt 0:03:32]} Na6 {[%emt 0:04:35]} 15. Bf4 {[%emt 0:07:41]} Nb4 {[%emt 0:02:20]} 16. Rac1 {[%emt 0:05:51]} Nxa2 {[%emt 0:04:18]} 17. Ra1 {[%emt 0:02:29]} Nb4 {[%emt 0:00:59]} 18. Qxe7 {[%emt 0:00:43]} Rxe7 {[%emt 0:00:08]} 19. Rxa7 {[%emt 0:00:07]} Rae8 {[%emt 0:06:12]} 20. Bd2 {[%emt 0:29:42]} Rd8 {[%emt 0:03:57]} 21. Rda1 {[%emt 0:00:10]} Nc2 {[%emt 0:01:16]} 22. Bg5 {[%emt 0:00:34]} f6 {[%emt 0:00:26]} 23. exf6 {[%emt 0:00:02]} Rf7 {[%emt 0:00:14]} 24. fxg7 {[%emt 0:07:42]} Re8 {[%emt 0:00:31]} 25. Rd1 {[%emt 0:02:38]} Rxe2 {[%emt 0:01:44]} 26. Bh6 {[%emt 0:01:07]} 1-0

[Event "SWE-ch 2019"]
[Site "Eskilstuna"]
[Date "2019.07.14"]
[Round "9.2"]
[White "Hillarp Persson, Tiger"]
[Black "Hector, Jonny"]
[Result "0-1"]
[ECO "A21"]
[WhiteElo "2562"]
[BlackElo "2487"]
[Annotator "ChessBase"]
[PlyCount "112"]
[EventDate "2019.07.06"]
[EventType "tourn"]
[EventCountry "SWE"]
[SourceTitle "playchess.com"]
[Source "ChessBase"]
[SourceQuality "1"]
[TimeControl "40/5400+30:1800+30"]

1. c4 {[%emt 0:00:00]} e5 {[%emt 0:00:00]} 2. Nc3 {[%emt 0:00:00]} Bb4 {[%emt 0:00:10]} 3. Nd5 {[%emt 0:00:00]} Be7 {[%emt 0:00:53]} 4. Nf3 {[%emt 0:00:04]} e4 {[%emt 0:03:34]} 5. Nd4 {[%emt 0:00:15]} Nf6 {[%emt 0:02:56]} 6. Qc2 {[%emt 0:06:46]} O-O {[%emt 0:01:34]} 7. Nf5 {[%emt 0:14:17]} Nxd5 {[%emt 0:08:06]} 8. cxd5 {[%emt 0:00:11]} d6 {[%emt 0:01:12]} 9. Qxe4 {[%emt 0:00:10]} Bf6 {[%emt 0:01:32]} 10. g3 {[%emt 0:20:11]} Re8 {[%emt 0:02:46]} 11. Qf3 {[%emt 0:06:01]} Na6 {[%emt 0:08:38]} 12. Bg2 {[%emt 0:04:35]} Nb4 {[%emt 0:00:24]} 13. Qb3 {[%emt 0:02:32]} Bxf5 {[%emt 0:04:09]} 14. Qxb4 {[%emt 0:00:06]} Bd3 {[%emt 0:04:51]} 15. e3 {[%emt 0:03:27]} Qd7 {[%emt 0:04:44]} 16. a4 {[%emt 0:11:23]} c5 {[%emt 0:01:51]} 17. dxc6 {[%emt 0:00:38]} bxc6 {[%emt 0:00:11]} 18. Ra3 {[%emt 0:01:30]} a5 {[%emt 0:07:49]} 19. Qb3 {[%emt 0:02:41]} Ba6 {[%emt 0:00:35]} 20. d3 {[%emt 0:01:04]} d5 {[%emt 0:01:54]} 21. O-O {[%emt 0:00:54]} h5 {[%emt 0:13:07]} 22. Qc2 {[%emt 0:01:16]} Be7 {[%emt 0:01:49]} 23. Ra1 {[%emt 0:01:26]} Rab8 {[%emt 0:03:46]} 24. Bd2 {[%emt 0:02:55]} Bb4 {[%emt 0:01:01]} 25. Rfc1 {[%emt 0:01:59]} Rec8 {[%emt 0:01:43]} 26. d4 {[%emt 0:00:56]} Bc4 {[%emt 0:02:20]} 27. Bc3 {[%emt 0:02:10]} Rb6 {[%emt 0:01:11]} 28. b3 {[%emt 0:01:25]} Bxc3 {[%emt 0:02:11]} 29. Qxc3 {[%emt 0:00:08]} Rxb3 {[%emt 0:00:37]} 30. Qxa5 {[%emt 0:00:11]} Rcb8 {[%emt 0:03:26]} 31. Qe1 {[%emt 0:00:32]} h4 {[%emt 0:06:35]} 32. a5 {[%emt 0:02:41]} hxg3 {[%emt 0:00:23]} 33. hxg3 {[%emt 0:00:08]} Ra8 {[%emt 0:02:00]} 34. Bf1 {[%emt 0:01:58]} Bxf1 {[%emt 0:00:33]} 35. Qxf1 {[%emt 0:00:39]} Rb5 {[%emt 0:02:10]} 36. a6 {[%emt 0:02:41]} Rb6 {[%emt 0:01:37]} 37. Rcb1 {[%emt 0:00:38]} Qa7 {[%emt 0:02:59]} 38. Qd3 {[%emt 0:02:11]} g6 {[%emt 0:02:24]} 39. Rxb6 {[%emt 0:00:56]} Qxb6 {[%emt 0:00:02]} 40. Qa3 {[%emt 0:00:16]} Ra7 {[%emt 0:00:33]} 41. Kg2 {[%emt 0:30:36]} Qb8 {[%emt 0:09:14]} 42. Qc5 {[%emt 0:00:00]} Qc7 {[%emt 0:01:37]} 43. Qa5 {[%emt 0:00:00]} Qb8 {[%emt 0:04:34]} 44. Qc5 {[%emt 0:00:00]} Qc7 {[%emt 0:00:21]} 45. g4 {[%emt 0:00:24]} Kg7 {[%emt 0:04:14]} 46. f4 {[%emt 0:06:55]} Qd7 {[%emt 0:01:31]} 47. Kf3 {[%emt 0:00:33]} Ra8 {[%emt 0:02:32]} 48. a7 {[%emt 0:02:05]} Qe6 {[%emt 0:00:38]} 49. Qc3 {[%emt 0:00:47]} Qe7 {[%emt 0:04:24]} 50. g5 {[%emt 0:00:52]} Qe6 {[%emt 0:02:08]} 51. Ke2 {[%emt 0:00:33]} Rh8 {[%emt 0:01:15]} 52. a8=Q {[%emt 0:00:53]} Rh2+ {[%emt 0:00:00]} 53. Ke1 {[%emt 0:00:16]} Qg4 {[%emt 0:00:00]} 54. Qa6 {[%emt 0:00:20]} Qg3+ {[%emt 0:00:03]} 55. Kd1 {[%emt 0:00:18]} Qf3+ {[%emt 0:00:15]} 56. Kc1 {[%emt 0:00:21]} Qh1+ {[%emt 0:00:11]} 0-1